bitfinex-derivatives/quotes_BTCF0:USTF0_20250805
["timestamp","ask_amount","ask_price","bid_price","bid_amount"]
[1754408229614,0.7357734,112910.0,112900.0,0.6558]
[1754408229817,0.7367734,112910.0,112900.0,0.6658]
[1754408230013,0.7367734,112910.0,112900.0,0.66592]
[1754408230217,0.7367734,112910.0,112900.0,0.65592]
[1754408230218,0.7357734,112910.0,112900.0,0.65592]
[1754408230414,0.7367734,112910.0,112900.0,0.72106]
[1754408230617,0.7367734,112910.0,112900.0,0.72006]
[1754408230922,0.7397734,112910.0,112900.0,0.65992]
[1754408231120,1.29568185,112910.0,112900.0,0.65992]
[1754408231512,1.29268185,112910.0,112900.0,0.65992]
[1754408231722,1.29468185,112910.0,112900.0,0.65992]
[1754408233224,0.7387734,112910.0,112900.0,0.8370891]
[1754408233426,1.29468185,112910.0,112900.0,0.65992]
[1754408234915,1.29468185,112910.0,112870.0,0.0265458]
[1754408234916,0.1772005,112880.0,112870.0,0.49323986]
[1754408235119,0.6702205,112880.0,112870.0,0.49323986]
[1754408235320,0.6702205,112880.0,112870.0,1.14711986]
[1754408235825,0.6702205,112880.0,112870.0,0.28836054]
[1754408236021,0.6702205,112880.0,112870.0,0.8308161]
[1754408236221,0.6702205,112880.0,112870.0,0.8909561]
[1754408236417,0.6712205,112880.0,112870.0,0.8989561]
[1754408237127,0.6712205,112880.0,112870.0,0.72174]
[1754408237316,0.6712205,112880.0,112870.0,0.8989562]
[1754408237515,0.6712205,112880.0,112870.0,0.9009562]
[1754408237721,1.22712895,112880.0,112870.0,0.9009562]
[1754408238322,1.22712895,112880.0,112870.0,0.8989562]
[1754408238519,1.22912895,112880.0,112870.0,0.008]
[1754408238724,1.22912895,112880.0,112870.0,0.66124]
[1754408239321,1.23312895,112880.0,112870.0,1.04105064]
[1754408239722,0.6772205,112880.0,112870.0,0.9299062]
[1754408239924,0.6772205,112880.0,112870.0,0.75269]
[1754408240229,1.23312895,112880.0,112870.0,0.65424]
[1754408240621,0.6772205,112880.0,112870.0,0.65424]
[1754408240823,0.6772205,112880.0,112840.0,0.38008302]
[1754408240824,0.1772476,112850.0,112840.0,0.38008302]
[1754408241027,0.39654,112850.0,112840.0,0.52823872]
[1754408241223,0.39654,112850.0,112840.0,1.18227872]
[1754408241425,0.39654,112850.0,112840.0,1.03287682]
[1754408241824,0.5737876,112850.0,112840.0,1.03287682]
[1754408242017,0.39654,112850.0,112840.0,0.38283682]
[1754408242229,0.2129876,112850.0,112840.0,1.03687682]
[1754408242531,0.2129876,112850.0,112840.0,0.94285762]
[1754408242829,0.2129876,112850.0,112840.0,0.94754762]
[1754408243029,0.5737876,112850.0,112840.0,0.94754762]
[1754408243229,0.2149876,112850.0,112840.0,0.95354762]
[1754408243429,0.5757876,112850.0,112840.0,0.95354762]
[1754408244023,0.5757876,112850.0,112840.0,0.77629632]
[1754408244334,0.5757876,112850.0,112840.0,0.95283962]
[1754408244626,0.5757876,112850.0,112840.0,0.85012632]
[1754408245230,0.6339676,112850.0,112840.0,0.84812632]
[1754408245438,0.6589076,112850.0,112840.0,0.84343632]
[1754408246133,1.31623605,112850.0,112840.0,0.72836]
[1754408246328,1.31623605,112850.0,112840.0,0.82744]
[1754408246534,0.7593276,112850.0,112840.0,0.83395]
[1754408247031,0.7583276,112850.0,112840.0,1.0042133]
[1754408247334,0.7593276,112850.0,112840.0,0.82895]
[1754408248036,0.7593276,112850.0,112840.0,1.0062132]
[1754408248237,0.7593276,112850.0,112840.0,0.82895]
[1754408248442,0.7593276,112850.0,112840.0,1.0150245]
[1754408248828,0.39754,112850.0,112840.0,1.0150245]
[1754408249031,0.001,112850.0,112840.0,1.93642295]
[1754408249231,0.03649,112850.0,112840.0,1.57562295]
[1754408249436,0.001,112850.0,112840.0,1.57562295]
[1754408249831,0.001,112850.0,112840.0,1.0197145]
[1754408250033,0.2719176,112850.0,112840.0,1.0197145]
[1754408250335,0.7221176,112850.0,112840.0,1.0150245]
[1754408250538,0.6696776,112850.0,112840.0,0.9397946]
[1754408250738,0.6696776,112850.0,112840.0,0.1098913]
[1754408250935,0.6696776,112850.0,112840.0,0.75372]
[1754408251337,0.6696776,112850.0,112840.0,0.9309832]
[1754408252942,0.6327175,112850.0,112840.0,0.9356732]
[1754408253130,0.6337175,112850.0,112840.0,0.9356732]
[1754408253335,0.39829,112850.0,112840.0,0.94455128]
[1754408253630,0.002,112850.0,112840.0,1.86125973]
[1754408253831,0.001,112850.0,112840.0,1.86125973]
[1754408254035,0.39629,112860.0,112840.0,1.86125973]
[1754408254036,0.16317,112870.0,112860.0,0.2810018]
[1754408254235,0.16317,112870.0,112860.0,1.48903025]
[1754408254436,0.12768,112870.0,112860.0,2.32703025]
[1754408254638,0.5734748,112890.0,112880.0,0.1894105]
[1754408254844,0.5734748,112890.0,112880.0,0.8417305]
[1754408255135,0.2126748,112890.0,112880.0,0.8417305]
[1754408255334,0.5888214,112900.0,112880.0,0.8417305]
[1754408255335,0.39629,112900.0,112890.0,0.1893947]
[1754408255541,0.573459,112900.0,112890.0,0.1893947]
[1754408255735,0.573459,112900.0,112890.0,0.19826822]
[1754408255940,0.668599,112900.0,112890.0,0.01221]
[1754408256135,0.2126747,112890.0,112880.0,0.9746113]
[1754408256439,0.3078147,112890.0,112880.0,0.9303123]
[1754408257642,0.3128147,112890.0,112880.0,0.9313123]
[1754408258242,0.2758547,112890.0,112880.0,0.9313123]
[1754408258432,0.6366547,112890.0,112880.0,0.9313123]
[1754408258636,0.2788547,112890.0,112880.0,0.9313123]
[1754408258840,0.04349,112890.0,112880.0,0.9313123]
[1754408260244,0.04349,112890.0,112880.0,1.0029684]
[1754408260641,0.008,112890.0,112880.0,1.0029684]
[1754408261034,0.008,112890.0,112880.0,1.91967685]
[1754408261439,0.11964,112900.0,112890.0,0.1813948]
[1754408261740,0.11964,112900.0,112890.0,1.09810325]
[1754408261946,0.15513,112900.0,112890.0,1.09810325]
[1754408262140,0.11964,112900.0,112890.0,1.09810325]
[1754408262542,0.11964,112900.0,112890.0,1.57525525]
[1754408262740,0.573428,112920.0,112910.0,0.1771534]
[1754408262942,0.47156,112920.0,112910.0,0.8320434]
[1754408263148,0.7423677,112920.0,112910.0,0.8320434]
[1754408263340,0.7793277,112920.0,112910.0,0.8320434]
[1754408263540,0.60219,112920.0,112910.0,0.8320434]
[1754408263942,0.7793277,112920.0,112910.0,0.8320434]
[1754408264143,0.7803277,112920.0,112910.0,0.8360434]
[1754408264344,0.7803277,112920.0,112910.0,0.8318334]
[1754408264548,0.7803277,112920.0,112910.0,0.004]
[1754408264751,1.33623615,112920.0,112910.0,0.6544]
[1754408264947,1.33623615,112920.0,112910.0,0.65492]
[1754408265946,1.52547615,112920.0,112910.0,0.006]
[1754408266154,0.3077991,112900.0,112890.0,0.19502455]
[1754408266450,1.22450755,112900.0,112890.0,0.65064]
[1754408266847,0.3078148,112890.0,112880.0,0.01021]
[1754408267052,0.6686148,112890.0,112880.0,0.8338405]
[1754408267246,0.6686148,112890.0,112880.0,0.8380505]
[1754408267850,0.49143,112890.0,112880.0,0.8380505]
[1754408268147,0.03649,112890.0,112880.0,0.1914105]
[1754408268350,0.2136748,112890.0,112880.0,0.8416505]
[1754408268650,0.5744748,112890.0,112880.0,0.8416505]
[1754408268956,0.3088148,112890.0,112880.0,0.8416505]
[1754408269246,0.6696148,112890.0,112880.0,0.8416505]
[1754408269553,0.6686148,112890.0,112880.0,0.8376505]
[1754408269850,0.6696148,112890.0,112880.0,0.65224]
[1754408270248,0.6696148,112890.0,112880.0,0.8324405]
[1754408270446,0.6696148,112890.0,112880.0,0.66324]
[1754408270843,0.6696148,112890.0,112880.0,0.8384405]
[1754408271246,0.6696148,112890.0,112880.0,0.8364405]
[1754408271442,0.6696148,112890.0,112880.0,0.8377905]
[1754408271652,0.6696148,112890.0,112880.0,0.66059]
[1754408271853,0.6341248,112890.0,112880.0,0.66059]
[1754408272052,1.19003325,112890.0,112880.0,0.65072]
[1754408272755,1.19003325,112890.0,112880.0,0.8279204]
[1754408273049,0.6351248,112890.0,112880.0,0.8335804]
[1754408273351,0.6351248,112890.0,112880.0,0.8369304]
[1754408273547,0.6341248,112890.0,112880.0,0.8359304]
[1754408273754,0.6735848,112890.0,112880.0,0.8359304]
[1754408273950,0.6735848,112890.0,112880.0,0.8706104]
[1754408274144,0.6695848,112890.0,112880.0,0.8696104]
[1754408274351,0.6705848,112890.0,112880.0,0.8706104]
[1754408274547,0.03746,112890.0,112880.0,0.93976098]
[1754408274749,0.002,112890.0,112880.0,1.49566943]
[1754408275754,0.002,112890.0,112880.0,0.93976098]
[1754408276054,0.002,112890.0,112880.0,0.94176098]
[1754408276250,0.002,112890.0,112880.0,1.49766943]
[1754408276751,0.7447419,112900.0,112890.0,0.2198748]
[1754408276952,0.6513819,112900.0,112890.0,0.2198748]
[1754408277152,0.6070894,112900.0,112890.0,0.2198748]
[1754408277454,0.7368894,112900.0,112890.0,0.1851948]
[1754408277748,0.5734294,112900.0,112890.0,0.2198748]
[1754408277954,0.6687694,112900.0,112890.0,0.2248748]
[1754408278255,0.6687694,112900.0,112890.0,0.01301]
[1754408278556,0.6687694,112900.0,112890.0,0.00966]
[1754408279656,0.6687694,112900.0,112890.0,0.01166]
[1754408279957,0.6687694,112900.0,112890.0,0.65708]
[1754408280456,1.22467785,112900.0,112890.0,0.65708]
[1754408280653,1.22467785,112900.0,112890.0,0.65508]
[1754408280858,1.22367785,112900.0,112890.0,0.65008]
[1754408281059,1.22467785,112900.0,112890.0,0.002]
[1754408281254,1.22467785,112900.0,112890.0,0.65152]
[1754408281658,1.22567785,112900.0,112890.0,0.65052]
[1754408281957,0.6697694,112900.0,112890.0,0.65052]
[1754408282152,0.6697694,112900.0,112890.0,0.8277047]
[1754408282354,0.6707691,112900.0,112890.0,0.8357147]
[1754408282548,0.6707691,112900.0,112890.0,0.65387]
[1754408282759,1.22667755,112900.0,112890.0,0.65052]
[1754408283360,1.22667755,112900.0,112890.0,0.00104]
[1754408283555,1.22667755,112900.0,112890.0,0.6512]
[1754408283755,0.6707691,112900.0,112890.0,0.6512]
[1754408283956,1.22667755,112900.0,112890.0,0.6512]
[1754408284262,0.3070005,112880.0,112870.0,0.2704686]
[1754408284451,0.6678005,112880.0,112870.0,0.8716649]
[1754408284656,0.1772162,112870.0,112860.0,0.57316577]
[1754408284956,1.22372465,112870.0,112860.0,0.66778298]
[1754408285155,1.22372465,112870.0,112860.0,0.64996]
[1754408285752,1.23463733,112870.0,112860.0,0.65596]
[1754408285967,1.22572465,112870.0,112860.0,0.8331919]
[1754408286161,1.22572465,112870.0,112860.0,0.8931619]
[1754408286659,0.6698162,112870.0,112860.0,0.8965119]
[1754408286854,0.6698162,112870.0,112860.0,0.9312319]
[1754408287056,0.6698162,112870.0,112860.0,0.9332319]
[1754408287356,1.22472465,112870.0,112860.0,0.8975519]
[1754408287556,1.22472465,112870.0,112860.0,0.8942019]
[1754408287757,1.22372465,112870.0,112860.0,0.8892019]
[1754408287960,1.2337065,112870.0,112860.0,0.8312319]
[1754408288161,1.22472465,112870.0,112860.0,0.8312319]
[1754408288660,1.22472465,112870.0,112860.0,0.8292319]
[1754408289056,1.22472465,112870.0,112860.0,0.8291518]
[1754408289455,1.22472465,112870.0,112860.0,0.8891218]
[1754408289656,1.22472465,112870.0,112860.0,0.65192]
[1754408289857,1.22572465,112870.0,112860.0,0.65192]
[1754408290261,1.22672465,112870.0,112860.0,0.8281518]
[1754408291257,1.22672465,112870.0,112860.0,0.65092]
[1754408291862,1.22672465,112870.0,112860.0,0.8281518]
[1754408292160,1.22672465,112870.0,112860.0,0.8881218]
[1754408292462,1.22672465,112870.0,112860.0,0.8281518]
[1754408292664,1.22672465,112870.0,112860.0,0.8881218]
[1754408293661,1.22672465,112870.0,112860.0,0.8281518]
[1754408294162,1.22672465,112870.0,112860.0,0.65092]
[1754408294964,1.31359465,112870.0,112860.0,0.71089]
[1754408295961,0.42719,112870.0,112860.0,0.9973119]
[1754408296158,0.003,112870.0,112860.0,0.9973119]
[1754408298268,0.003,112870.0,112860.0,2.39122035]
[1754408298760,0.21456,112880.0,112870.0,0.3426862]
[1754408298964,0.133,112880.0,112870.0,0.7034862]
[1754408299164,0.133,112880.0,112870.0,0.3426862]
[1754408299364,0.133,112880.0,112870.0,0.7034862]
[1754408299761,0.133,112880.0,112870.0,1.55939465]
[1754408299963,0.03619,112880.0,112870.0,1.73757865]
[1754408301666,0.03619,112880.0,112870.0,1.74357865]
[1754408303363,0.03719,112880.0,112870.0,1.74357865]
[1754408303769,0.03719,112880.0,112870.0,1.1876702]
[1754408303968,0.03699,112880.0,112870.0,1.74357865]
[1754408304268,0.03599,112880.0,112870.0,1.74357865]
[1754408304468,0.11964,112900.0,112870.0,1.57136245]
[1754408304674,0.08365,112900.0,112890.0,1.10119325]
[1754408304872,0.03485,112910.0,112900.0,0.1844691]
[1754408305069,0.03485,112910.0,112900.0,1.1916691]
[1754408305272,0.12491,112910.0,112900.0,0.8308691]
[1754408305473,0.7583234,112910.0,112900.0,0.8308691]
[1754408305669,0.7583234,112910.0,112900.0,0.1844691]
[1754408305870,0.58117,112910.0,112900.0,0.8308291]
[1754408306069,0.22037,112910.0,112900.0,0.83981548]
[1754408306466,0.58117,112910.0,112900.0,0.83981548]
[1754408306676,0.58117,112910.0,112900.0,0.90934298]
[1754408306976,0.7583234,112910.0,112900.0,0.90934298]
[1754408307171,0.58117,112910.0,112900.0,0.90934298]
[1754408307475,0.22037,112910.0,112900.0,0.90934298]
[1754408307672,0.7583234,112910.0,112900.0,0.91034298]
[1754408308174,0.7593234,112910.0,112900.0,0.91534298]
[1754408308375,0.7593234,112910.0,112900.0,0.26898298]
[1754408308575,1.31523185,112910.0,112900.0,0.90796298]
[1754408308874,0.7593234,112910.0,112900.0,0.8989766]
[1754408309073,0.7593234,112910.0,112900.0,0.9017866]
[1754408310368,0.7593234,112910.0,112900.0,0.9018266]
[1754408310576,0.7593234,112910.0,112900.0,0.8990166]
[1754408311679,0.58217,112910.0,112900.0,0.9063166]
[1754408312177,0.7593234,112910.0,112900.0,0.9063166]
[1754408312378,0.22137,112910.0,112900.0,0.9063166]
[1754408312679,0.7593234,112910.0,112900.0,0.9063166]
[1754408313769,0.22137,112910.0,112900.0,0.9063166]
[1754408313969,0.58217,112910.0,112900.0,0.9063166]
[1754408314379,0.22137,112910.0,112900.0,0.9063166]
[1754408314981,0.3985234,112910.0,112900.0,0.9063166]
[1754408315179,0.7593234,112910.0,112900.0,0.9063166]
[1754408315777,0.7593234,112910.0,112900.0,0.8294091]
[1754408315980,0.22137,112910.0,112900.0,0.8367091]
[1754408317882,0.03585,112910.0,112900.0,1.1975091]
[1754408318082,0.03585,112910.0,112900.0,0.8367091]
[1754408318478,0.001,112910.0,112900.0,1.75341755]
[1754408318979,0.001,112910.0,112900.0,2.23056155]
[1754408319186,0.48571,112940.0,112930.0,0.181822]
[1754408319390,0.12491,112940.0,112930.0,0.827942]
[1754408319579,0.48571,112940.0,112930.0,0.827942]
[1754408319775,0.2615977,112920.0,112910.0,0.19973741]
[1754408319990,0.7583077,112920.0,112910.0,0.84585741]
[1754408320287,1.22415615,112920.0,112910.0,0.66401181]
[1754408320679,0.6682477,112920.0,112910.0,0.66401181]
[1754408320878,0.6682477,112920.0,112910.0,0.84116521]
[1754408321386,0.6692477,112920.0,112910.0,0.66393181]
[1754408321585,0.1771534,112910.0,112900.0,1.404126]
[1754408321887,0.6682634,112910.0,112900.0,2.048356]
[1754408322386,1.22417185,112910.0,112900.0,2.0483691]
[1754408323181,0.6682634,112910.0,112900.0,2.0493691]
[1754408323586,0.6682634,112910.0,112900.0,2.0511791]
[1754408323987,0.6692634,112910.0,112900.0,2.0561791]
[1754408324481,0.7593234,112910.0,112900.0,2.0561791]
[1754408324688,0.7593234,112910.0,112900.0,1.87901]
[1754408325079,0.7593234,112910.0,112900.0,1.8772]
[1754408325291,0.7593234,112910.0,112900.0,2.054369]
[1754408325691,0.7593234,112910.0,112900.0,1.8772]
[1754408325887,0.5738034,112910.0,112900.0,2.054369]
[1754408326084,0.7593234,112910.0,112900.0,2.056179]
[1754408327489,0.3985234,112910.0,112900.0,2.056179]
[1754408327789,0.7593234,112910.0,112900.0,2.056179]
[1754408328186,0.3985234,112910.0,112900.0,2.056179]
[1754408328487,0.7593234,112910.0,112900.0,2.056179]
[1754408329490,1.31523185,112910.0,112900.0,1.23116]
[1754408329692,1.31523185,112910.0,112900.0,1.87716]
[1754408329883,1.31523185,112910.0,112900.0,0.65204]
[1754408330082,1.32404371,112910.0,112900.0,0.65204]
[1754408330996,1.32404371,112910.0,112900.0,0.64804]
[1754408331292,1.32504371,112910.0,112900.0,0.64704]
[1754408331489,1.32404371,112910.0,112900.0,0.64604]
[1754408331696,1.32504371,112910.0,112900.0,0.8242091]
[1754408332388,1.32504371,112910.0,112900.0,0.64704]
[1754408332795,1.62504371,112910.0,112900.0,0.64704]
[1754408333095,0.2664891,112900.0,112890.0,4e-05]
[1754408333294,1.31646755,112900.0,112890.0,0.8232248]
[1754408333688,1.31646755,112900.0,112890.0,0.64604]
[1754408333884,1.79361955,112900.0,112890.0,0.64604]
[1754408334084,1.79361955,112900.0,112890.0,4e-05]
[1754408334392,0.3998062,112870.0,112860.0,1.4939626]
[1754408334591,0.7606062,112870.0,112860.0,2.1399226]
[1754408335892,0.7616062,112870.0,112860.0,2.1439226]
[1754408336094,0.7616062,112870.0,112860.0,2.0996152]
[1754408336696,0.7222362,112870.0,112860.0,2.0996152]
[1754408336895,0.7616062,112870.0,112860.0,2.0996152]
[1754408337494,0.7626062,112870.0,112860.0,2.0996152]
[1754408338294,0.7616062,112870.0,112860.0,2.1006152]
[1754408338495,0.7616062,112870.0,112860.0,1.87909]
[1754408338693,1.31751465,112870.0,112860.0,1.87604]
[1754408339392,0.7222362,112870.0,112860.0,2.0563218]
[1754408339598,0.7616062,112870.0,112860.0,2.0563218]
[1754408340291,0.7616062,112870.0,112860.0,2.0563219]
[1754408340697,0.7616062,112870.0,112860.0,1.87909]
[1754408340892,1.31751465,112870.0,112860.0,1.87839]
[1754408341398,1.31751465,112870.0,112860.0,1.87604]
[1754408342097,1.31751465,112870.0,112860.0,1.87839]
[1754408342293,1.31751465,112870.0,112860.0,2.0563219]
[1754408342693,0.7616062,112870.0,112860.0,2.0563219]
[1754408342894,0.7616062,112870.0,112860.0,0.65892]
[1754408343398,1.31751465,112870.0,112860.0,0.65892]
[1754408343592,1.31751465,112870.0,112860.0,0.65405]
[1754408343792,1.31751465,112870.0,112860.0,0.65335]
[1754408343997,1.44335465,112870.0,112860.0,0.65335]
[1754408344199,1.44335465,112870.0,112860.0,0.8305819]
[1754408344398,1.44335465,112870.0,112860.0,0.8312819]
[1754408344893,1.44335465,112870.0,112860.0,0.8361519]
[1754408345593,0.8874462,112870.0,112860.0,0.8361519]
[1754408345797,0.7908262,112870.0,112860.0,0.8361519]
[1754408346099,0.8874462,112870.0,112860.0,0.8361519]
[1754408346298,0.7015062,112870.0,112860.0,0.8282319]
[1754408346500,1.40256465,112870.0,112860.0,0.65405]
[1754408346996,1.32194354,112870.0,112860.0,0.651]
[1754408347602,1.32194354,112870.0,112860.0,0.8312818]
[1754408347895,1.32094354,112870.0,112860.0,0.8272818]
[1754408348101,1.32194354,112870.0,112860.0,0.8302818]
[1754408348303,1.32194354,112870.0,112860.0,0.8292818]
[1754408348802,1.32194354,112870.0,112860.0,0.8303918]
[1754408348992,1.32194354,112870.0,112860.0,0.8341518]
[1754408349192,1.32294354,112870.0,112860.0,0.8341518]
[1754408349402,1.36373354,112870.0,112860.0,0.8341518]
[1754408349598,0.7918261,112870.0,112860.0,0.8341518]
[1754408349800,0.3417061,112870.0,112860.0,1.30943914]
[1754408350103,0.7025061,112870.0,112860.0,0.8341518]
[1754408350402,0.7597561,112870.0,112860.0,0.8351518]
[1754408350595,0.3979561,112870.0,112860.0,0.8351518]
[1754408350795,0.6648561,112870.0,112860.0,0.8351518]
[1754408350997,0.3407061,112870.0,112860.0,0.8351518]
[1754408351192,0.7981261,112870.0,112860.0,0.8361518]
[1754408351404,0.8874461,112870.0,112860.0,0.8361518]
[1754408351604,0.5266461,112870.0,112860.0,0.8361518]
[1754408351805,0.8874461,112870.0,112860.0,0.8361518]
[1754408352703,0.8874461,112870.0,112860.0,0.65892]
[1754408352902,1.36273344,112870.0,112860.0,0.65892]
[1754408353299,1.36273344,112870.0,112860.0,0.0085]
[1754408353504,1.36273344,112870.0,112860.0,0.651]
[1754408354414,1.36273344,112870.0,112860.0,0.8354519]
[1754408354614,0.8874461,112870.0,112860.0,0.8361519]
[1754408356311,0.8874461,112870.0,112860.0,0.65892]
[1754408356506,1.36273344,112870.0,112860.0,0.651]
[1754408357316,0.8874461,112870.0,112860.0,0.8361518]
[1754408358620,0.8874461,112870.0,112860.0,0.8354518]
[1754408358621,0.7015061,112870.0,112860.0,0.8354518]
[1754408358817,0.8874461,112870.0,112860.0,0.8361518]
[1754408359015,1.36273344,112870.0,112860.0,0.65892]
[1754408359417,1.36273344,112870.0,112860.0,0.8361518]
[1754408359617,1.36273344,112870.0,112860.0,0.65892]
[1754408359917,1.36273344,112870.0,112860.0,0.65335]
[1754408360119,1.36273344,112870.0,112860.0,0.8305818]
[1754408360322,1.36273344,112870.0,112860.0,0.65335]
[1754408360524,1.36273344,112870.0,112860.0,0.651]
[1754408360819,1.36273344,112870.0,112860.0,0.8282319]
[1754408361225,1.36273344,112870.0,112860.0,0.8312819]
[1754408361422,1.36273344,112870.0,112860.0,0.8361519]
[1754408361725,0.8864462,112870.0,112860.0,0.8321519]
[1754408361922,0.71023,112870.0,112860.0,0.8331519]
[1754408362224,0.16349,112870.0,112860.0,1.1939519]
[1754408362420,0.16349,112870.0,112860.0,1.66923924]
[1754408362722,0.12684,112870.0,112860.0,1.02327924]
[1754408362913,0.1266,112870.0,112860.0,2.14619924]
[1754408363312,0.1256,112870.0,112860.0,2.14519924]
[1754408363518,0.1256,112870.0,112860.0,2.14719924]
[1754408363519,0.1266,112870.0,112860.0,2.14719924]
[1754408363718,0.1266,112870.0,112860.0,2.14619924]
[1754408364113,0.1266,112870.0,112860.0,1.18371012]
[1754408364321,0.1266,112870.0,112860.0,2.30471746]
[1754408364628,0.1276,112870.0,112860.0,2.39803161]
[1754408364828,0.002,112870.0,112860.0,2.39803161]
[1754408365125,0.03631,112880.0,112870.0,0.1772162]
[1754408365325,0.03631,112880.0,112870.0,1.09461769]
[1754408365728,0.13017,112880.0,112870.0,0.5380162]
[1754408365929,0.6265683,112900.0,112870.0,0.4051006]
[1754408366118,0.3023947,112890.0,112880.0,0.9114746]
[1754408366426,0.7570547,112890.0,112880.0,0.9114746]
[1754408367317,0.7570547,112890.0,112880.0,0.2214971]
[1754408367517,0.7570547,112890.0,112880.0,0.8670571]
[1754408367719,0.3033947,112890.0,112880.0,0.8720571]
[1754408367927,0.3972547,112890.0,112880.0,0.8720571]
[1754408368134,0.3972547,112890.0,112880.0,0.8740571]
[1754408368430,0.3972547,112890.0,112880.0,0.8829691]
[1754408368630,0.7580547,112890.0,112880.0,0.8829691]
[1754408368820,0.3972547,112890.0,112880.0,0.8829691]
[1754408369024,0.7580548,112890.0,112880.0,0.8829691]
[1754408369228,0.7580548,112890.0,112880.0,0.8386724]
[1754408370223,0.7580548,112890.0,112880.0,0.1931124]
[1754408370430,1.31465629,112890.0,112880.0,0.65244]
[1754408371920,0.7580548,112890.0,112880.0,0.8296405]
[1754408372319,0.12621,112890.0,112880.0,0.8296405]
[1754408372626,0.08641,112890.0,112880.0,0.8296405]
[1754408372826,0.14431,112890.0,112880.0,0.8296405]
[1754408373133,0.03731,112890.0,112880.0,0.8296405]
[1754408373832,0.03731,112890.0,112880.0,1.74704199]
[1754408374031,0.001,112890.0,112880.0,1.74704199]
[1754408374333,0.001,112890.0,112880.0,1.92420999]
[1754408374722,0.001,112890.0,112880.0,1.74704199]
[1754408376432,0.03731,112890.0,112880.0,0.8296405]
[1754408376629,0.09521,112890.0,112880.0,0.8294805]
[1754408376928,0.13117,112890.0,112880.0,0.8294805]
[1754408377535,0.03731,112890.0,112880.0,1.1902805]
[1754408377735,0.03731,112890.0,112880.0,1.74688199]
[1754408377736,0.001,112890.0,112880.0,1.74688199]
[1754408378639,0.001,112890.0,112880.0,0.5450005]
[1754408378837,0.03731,112890.0,112880.0,1.74684199]
[1754408379240,0.03731,112890.0,112880.0,1.1902405]
[1754408379440,0.03731,112890.0,112880.0,1.74684199]
[1754408379739,0.001,112890.0,112880.0,1.74684199]
[1754408382140,0.03731,112890.0,112880.0,1.1902405]
[1754408384441,0.03731,112890.0,112880.0,0.8294405]
[1754408384940,0.09521,112890.0,112880.0,0.8294405]
[1754408385141,0.3972547,112890.0,112880.0,0.8294405]
[1754408385531,0.7580547,112890.0,112880.0,0.8294405]
[1754408385730,0.7580547,112890.0,112880.0,0.007]
[1754408385940,0.7580547,112890.0,112880.0,0.8291605]
[1754408386944,0.22007,112890.0,112880.0,0.8281605]
[1754408387135,0.001,112890.0,112880.0,1.38476199]
[1754408387541,0.03631,112890.0,112880.0,1.37976199]
[1754408387742,0.03731,112890.0,112880.0,0.8261605]
[1754408388037,0.7580547,112890.0,112880.0,0.8261605]
[1754408388243,0.7580547,112890.0,112880.0,0.1842005]
[1754408388443,0.7580547,112890.0,112880.0,0.8290405]
[1754408388742,0.7580547,112890.0,112880.0,0.8300404]
[1754408389242,0.7570547,112890.0,112880.0,0.002]
[1754408389444,1.31465619,112890.0,112880.0,0.65084]
[1754408389746,1.31465619,112890.0,112880.0,0.006]
[1754408389945,1.31465619,112890.0,112880.0,0.8280404]
[1754408390137,0.7580547,112890.0,112880.0,0.8280404]
[1754408390641,0.7580547,112890.0,112880.0,0.8260404]
[1754408390841,0.7580547,112890.0,112880.0,0.64884]
[1754408391046,1.31465619,112890.0,112880.0,0.64884]
[1754408391740,1.36161619,112890.0,112880.0,0.64884]
[1754408392145,1.37064277,112890.0,112880.0,0.64884]
[1754408392443,1.36161619,112890.0,112880.0,0.64884]
[1754408392648,1.36161619,112890.0,112880.0,0.8260404]
[1754408394048,0.8050147,112890.0,112880.0,0.8260404]
[1754408394538,1.36161619,112890.0,112880.0,0.64884]
[1754408395041,1.36361619,112890.0,112880.0,0.64584]
[1754408395635,1.36261619,112890.0,112880.0,0.64784]
[1754408396243,0.8060147,112890.0,112880.0,0.8250004]
[1754408397142,0.8060147,112890.0,112880.0,0.8230004]
[1754408398151,0.8050147,112890.0,112880.0,0.8230004]
[1754408398346,0.8040147,112890.0,112880.0,0.8220004]
[1754408398547,0.8050147,112890.0,112880.0,0.8250004]
[1754408399051,0.8050147,112890.0,112880.0,0.8230004]
[1754408399451,0.8060147,112890.0,112880.0,0.8230004]
[1754408399645,0.8060147,112890.0,112880.0,0.6458]
[1754408399850,1.36261619,112890.0,112880.0,0.8230005]
[1754408400352,0.8060147,112890.0,112880.0,0.8230005]
[1754408400546,0.8060147,112890.0,112880.0,0.8240005]
[1754408400748,0.53497,112890.0,112880.0,1.38060199]
[1754408400954,0.44607,112890.0,112880.0,1.38060199]
[1754408401151,0.44607,112890.0,112880.0,0.8230005]
[1754408401451,0.04896,112890.0,112880.0,1.37960199]
[1754408401647,0.04696,112890.0,112880.0,1.37960199]
[1754408401846,0.04696,112890.0,112880.0,1.74340199]
[1754408401847,0.04796,112890.0,112880.0,1.74340199]
[1754408402352,0.08357,112890.0,112880.0,0.8260005]
[1754408402556,0.08357,112890.0,112880.0,0.8280005]
[1754408403148,0.04796,112890.0,112880.0,1.1888005]
[1754408403554,0.04896,112890.0,112880.0,1.74840199]
[1754408403754,0.08457,112890.0,112880.0,1.74840199]
[1754408404147,0.04896,112890.0,112880.0,1.74840199]
[1754408404344,0.04896,112890.0,112880.0,1.38760199]
[1754408404852,0.04896,112890.0,112880.0,2.01320199]
[1754408408654,0.002,112890.0,112880.0,2.01320199]
[1754408409449,0.002,112890.0,112880.0,2.22556999]
[1754408410554,0.002,112890.0,112880.0,1.74840199]
[1754408410760,0.03761,112890.0,112880.0,1.74840199]
[1754408411261,0.002,112890.0,112880.0,1.74840199]
[1754408413266,0.002,112890.0,112880.0,1.74844199]
[1754408414555,0.002,112890.0,112880.0,1.92560999]
[1754408415361,0.06824,112910.0,112900.0,0.177169]
[1754408415557,0.06824,112910.0,112900.0,1.73905049]
[1754408415758,0.10385,112910.0,112900.0,1.73905049]
[1754408415959,0.03561,112910.0,112900.0,1.73905049]
[1754408417062,0.03561,112910.0,112900.0,0.821649]
[1754408417459,0.09115,112910.0,112900.0,0.821649]
[1754408417967,0.17868,112910.0,112900.0,1.37925049]
[1754408418266,0.21526,112910.0,112900.0,0.822569]
[1754408418470,0.21526,112910.0,112900.0,0.823569]
[1754408418763,0.21526,112910.0,112900.0,0.89371037]
[1754408420261,0.3924134,112910.0,112900.0,0.89371037]
[1754408420463,0.21526,112910.0,112900.0,0.89371037]
[1754408421072,0.7532134,112910.0,112900.0,0.89363037]
[1754408421270,1.30981489,112910.0,112900.0,0.002]
[1754408421468,1.60981489,112910.0,112900.0,0.64632]